fUST/lending_fUST_20260410
["ID","MTS","AMOUNT","RATE_DAILY","PERIOD"]
[420178847,1775751043866,-500.0,0.00020769,2]
[420178848,1775751043877,-500.0,0.00020769,2]
[420178849,1775751043888,-424.69371145,0.00020769,2]
[420178850,1775751043899,-500.0,0.00020769,2]
[420178851,1775751043909,-300.0,0.00020769,2]
[420178852,1775751043919,-467.01709436,0.00020769,2]
[420178853,1775751043930,-795.68827912,0.00020822,2]
[420178854,1775751043940,-1442.0,0.00020822,2]
[420178855,1775751043950,-3394.30628131,0.00021799,7]
[420178865,1775751046073,-1442.0,0.00020822,2]
[420178866,1775751046082,-600.0,0.00021517,10]
[420178867,1775751046091,-2449.63089899,0.00021918,2]
[420178868,1775751046101,-489.96538241,0.00021918,2]
[420178869,1775751046116,-3534.32660659,0.00021918,2]
[420178870,1775751046125,-302.33020775,0.00021918,2]
[420178871,1775751046148,-3721.96178125,0.00021918,2]
[420178872,1775751046157,-4024.291989,0.00021918,2]
[420178873,1775751046167,-4024.291989,0.00021918,2]
[420178874,1775751046176,-4024.291989,0.00021918,2]
[420178875,1775751046185,-4024.291989,0.00021918,2]
[420178876,1775751046195,-4024.291989,0.00021918,2]
[420178877,1775751046205,-4024.291989,0.00021918,2]
[420178878,1775751046214,-4024.29197911,0.00021918,2]
[420178879,1775751046224,-1261.0,0.00021918,7]
[420178880,1775751046234,-7662.0,0.00021918,7]
[420178881,1775751046243,-648.99109863,0.0002195,2]
[420178882,1775751046252,-500.0,0.00021973,2]
[420178883,1775751046261,-503.39681764,0.00022,8]
[420178884,1775751046271,-38922.57581725,0.00022,2]
[420178885,1775751136949,1391.0,9.001e-05,2]
[420178887,1775752017444,10000.0,9.001e-05,2]
[420178889,1775752064486,5000.0,5.5e-07,10]
[420178890,1775752071463,5000.0,5.5e-07,10]
[420178891,1775752098343,5000.0,5.5e-07,10]
[420178892,1775752149463,10000.0,9.001e-05,2]
[420178893,1775752202535,150.87,9e-05,2]
[420178906,1775752232492,-150.87,9.1e-05,2]
[420178907,1775752232501,-150.87,9.2e-05,2]
[420178908,1775752232512,-124.91314757,9.3e-05,2]
[420178909,1775752232525,-25.95685243,9.3e-05,2]
[420178910,1775752232535,-150.87,9.4e-05,2]
[420178911,1775752232546,-150.87,9.4e-05,2]
[420178912,1775752232556,-150.87,9.5e-05,2]
[420178913,1775752232567,-150.87,9.6e-05,2]
[420178914,1775752232577,-150.87,9.7e-05,2]
[420178915,1775752232587,-150.87,9.8e-05,2]
[420178916,1775752232597,-150.87,9.9e-05,2]
[420178917,1775752232607,-1000.0,0.00013699,2]
[420178918,1775752232617,-166.66666666,0.00013718,2]
[420178919,1775752232627,-254.59215086,0.00013818,2]
[420178920,1775752232637,-1115.55185324,0.00014175,2]
[420178921,1775752232647,-263.63530752,0.00015092,2]
[420178922,1775752232660,-1501.47030915,0.00015092,2]
[420178923,1775752232687,-424.42120536,0.00015092,2]
[420178924,1775752232696,-300.41873802,0.00015818,2]
[420178925,1775752232706,-300.0,0.00016438,2]
[420178926,1775752232716,-300.0,0.00017406,2]
[420178927,1775752232726,-200.2,0.00017407,2]
[420178928,1775752232738,-1481.74316309,0.00017407,2]
[420178929,1775752232751,-22513.54150971,0.00017407,2]
[420178930,1775752232762,-346.24532517,0.00017818,2]
[420178931,1775752232772,-330.0,0.00017964,2]
[420178932,1775752232783,-173.394795,0.00018844,2]
[420178933,1775752232792,-420.0,0.00019004,2]
[420178934,1775752232802,-255.41575154,0.00019173,2]
[420178935,1775752232815,-500.0,0.00019173,2]
[420178936,1775752232825,-500.0,0.00019176,2]
[420178937,1775752232835,-471.06106042,0.00019176,2]
[420178938,1775752232846,-1119.90035688,0.00019177,18]
[420178939,1775752232856,-1119.90035688,0.00019177,18]
[420178940,1775752232867,-1119.90035688,0.00019177,18]
[420178941,1775752232877,-1119.90035687,0.00019177,18]
[420178942,1775752232888,-200.2,0.00019177,2]
[420178943,1775752232898,-200.2,0.00019177,2]
[420178944,1775752232908,-500.0,0.00019177,2]
[420178945,1775752232918,-500.0,0.00019177,2]
[420178946,1775752232930,-500.0,0.00019177,2]
[420178947,1775752232939,-500.0,0.00019177,2]
[420178948,1775752232949,-500.0,0.00019177,2]
[420178949,1775752232960,-500.0,0.00019177,2]
[420178950,1775752232970,-467.27671301,0.00019177,2]
[420178951,1775752232980,-500.0,0.00019177,2]
[420178952,1775752232990,-500.0,0.00019177,2]
[420178953,1775752233000,-500.0,0.00019177,2]
[420178954,1775752233009,-500.0,0.00019177,2]
[420178955,1775752233020,-500.0,0.00019177,2]
[420178956,1775752233030,-167.0936988,0.00019177,2]
[420178957,1775752233040,-168.90385498,0.00019177,2]
[420178958,1775752233050,-499.99999999,0.00019177,2]
[420178959,1775752233060,-1221.31,0.00019178,18]
[420178960,1775752233071,-500.0,0.00019178,18]
[420178961,1775752233082,-289.01035677,0.00019178,18]
[420178962,1775752233092,-979.3,0.00019178,18]
[420178963,1775752233103,-500.0,0.00019178,18]
[420178964,1775752233114,-1047.84,0.00019178,18]
[420178965,1775752233125,-514.87,0.00019178,18]
[420178966,1775752233136,-505.92,0.00019178,18]
[420178967,1775752233146,-500.0,0.00019178,18]
[420178968,1775752233157,-522.90493752,0.00019178,18]
[420178969,1775752233438,-500.0,0.00019178,18]
[420178970,1775752233448,-574.22,0.00019178,18]
[420178971,1775752233458,-500.0,0.00019178,12]
[420178972,1775752233468,-500.0,0.00019178,18]
[420178973,1775752233478,-500.0,0.00019178,18]
[420178974,1775752233488,-500.0,0.00019178,18]
[420178975,1775752233498,-500.0,0.00019178,18]
[420178976,1775752233508,-500.0,0.00019178,18]
[420178977,1775752233518,-579.55,0.00019178,18]
[420178978,1775752233528,-500.0,0.00019178,18]
[420178980,1775752233538,-500.0,0.00019178,18]
[420178982,1775752233548,-500.0,0.00019178,18]
[420178984,1775752233557,-500.0,0.00019178,18]
[420178986,1775752233567,-515.6,0.00019178,18]
[420178987,1775752233577,-605.79,0.00019178,18]
[420178988,1775752233586,-536.52,0.00019178,18]
[420178989,1775752233596,-500.0,0.00019178,18]
[420178990,1775752233606,-594.08376934,0.00019178,18]
[420178991,1775752233615,-500.0,0.00019178,18]
[420178993,1775752233625,-500.0,0.00019178,18]
[420178995,1775752233634,-500.0,0.00019178,18]
[420178997,1775752233644,-500.0,0.00019178,18]
[420178998,1775752233654,-1126.33,0.00019178,18]
[420179000,1775752233664,-500.0,0.00019178,18]
[420179002,1775752233674,-500.0,0.00019178,18]
[420179004,1775752233683,-500.0,0.00019178,18]
[420179006,1775752233693,-500.0,0.00019178,18]
[420179007,1775752233702,-1010.77,0.00019178,18]
[420179010,1775752233712,-500.0,0.00019178,18]
[420179011,1775752233721,-500.0,0.00019178,18]
[420179014,1775752233732,-1088.77,0.00019178,18]
[420179016,1775752233742,-500.0,0.00019178,18]
[420179018,1775752233752,-510.80757852,0.00019178,18]
[420179020,1775752233762,-500.0,0.00019178,18]
[420179021,1775752233771,-645.50248875,0.00019178,18]
[420179023,1775752233781,-592.43903991,0.00019178,18]
[420179025,1775752233791,-500.0,0.00019178,18]
[420179027,1775752233800,-500.0,0.00019178,8]
[420179029,1775752233810,-500.0,0.00019178,18]
[420179031,1775752233820,-500.0,0.00019178,18]
[420179033,1775752233830,-500.0,0.00019178,7]
[420179035,1775752233840,-500.0,0.00019178,18]
[420179037,1775752233850,-678.87,0.00019178,18]
[420179039,1775752233860,-500.0,0.00019178,18]
[420179041,1775752233870,-500.0,0.00019178,18]
[420179043,1775752233879,-500.0,0.00019178,18]
[420179045,1775752233889,-500.0,0.00019178,18]
[420179047,1775752233898,-500.0,0.00019178,18]
[420179049,1775752233908,-500.0,0.00019178,18]
[420179052,1775752233919,-574.84,0.00019178,18]
[420179054,1775752233930,-500.0,0.00019178,18]
[420179056,1775752233939,-500.0,0.00019178,18]
[420179058,1775752233949,-500.0,0.00019178,18]
[420179060,1775752233959,-500.0,0.00019178,18]
[420179062,1775752233968,-500.0,0.00019178,18]
[420179064,1775752233978,-500.0,0.00019178,18]
[420179066,1775752233987,-500.0,0.00019178,18]
[420179068,1775752233997,-552.23,0.00019178,18]
[420179070,1775752234006,-500.0,0.00019178,18]
[420179072,1775752234015,-500.0,0.00019178,18]
[420179074,1775752234025,-500.0,0.00019178,18]
[420179076,1775752234035,-500.0,0.00019178,18]
[420179078,1775752234045,-339.05055331,0.00019178,18]
[420179080,1775752234056,-1907.45,0.00019178,18]
[420179082,1775752234065,-500.0,0.00019178,18]
[420179084,1775752234075,-500.0,0.00019178,18]
[420179086,1775752234085,-500.0,0.00019178,18]
[420179088,1775752234095,-524.93727417,0.00019178,18]
[420179090,1775752234105,-509.76,0.00019178,18]
[420179092,1775752234114,-546.16,0.00019178,18]
[420179094,1775752234124,-596.82,0.00019178,18]
[420179096,1775752234134,-783.16,0.00019178,18]
[420179098,1775752234145,-500.0,0.00019178,18]
[420179100,1775752234155,-500.0,0.00019178,18]
[420179102,1775752234165,-500.0,0.00019178,18]
[420179104,1775752234174,-500.0,0.00019178,18]
[420179106,1775752234184,-617.51415941,0.00019178,18]
[420179108,1775752234194,-500.0,0.00019178,18]
[420179110,1775752234204,-500.0,0.00019178,18]
[420179112,1775752234214,-500.0,0.00019178,18]
[420179114,1775752234224,-500.0,0.00019178,18]
[420179116,1775752234234,-547.99,0.00019178,18]
[420179118,1775752234244,-725.96,0.00019178,18]
[420179120,1775752234254,-203.17473942,0.00019178,2]
[420179122,1775752234264,-500.0,0.00019178,18]
[420179124,1775752234274,-500.0,0.00019178,18]
[420179126,1775752234284,-500.0,0.00019178,18]
[420179128,1775752234293,-438.77495871,0.00019178,18]
[420179192,1775752238653,-61.22504129,0.00019178,18]
[420179194,1775752238664,-500.0,0.00019178,18]
[420179196,1775752238674,-500.0,0.00019178,18]
[420179198,1775752238685,-500.0,0.00019178,18]
[420179200,1775752238695,-763.96,0.00019178,18]
[420179202,1775752238705,-500.0,0.00019178,18]
[420179205,1775752238716,-500.0,0.00019178,18]
[420179207,1775752238725,-500.0,0.00019178,18]
[420179209,1775752238735,-504.59681662,0.00019178,18]
[420179211,1775752238745,-500.0,0.00019178,2]
[420179213,1775752238755,-503.84,0.00019178,18]
[420179214,1775752238765,-500.0,0.00019178,18]
[420179217,1775752238774,-639.4,0.00019178,18]
[420179219,1775752238784,-500.0,0.00019178,2]
[420179221,1775752238794,-1000.0,0.00019178,2]
[420179223,1775752238803,-500.0,0.00019178,18]
[420179226,1775752238814,-3593.88,0.00019178,18]
[420179228,1775752238824,-500.0,0.00019178,18]
[420179230,1775752238833,-500.0,0.00019178,18]
[420179232,1775752238842,-500.0,0.00019178,18]
[420179234,1775752238851,-500.0,0.00019178,18]
[420179236,1775752238861,-1089.63,0.00019178,18]
[420179238,1775752238872,-4396.72,0.00019178,18]
[420179261,1775752239091,-729.97,0.00019178,18]
[420179263,1775752239102,-500.0,0.00019178,18]
[420179265,1775752239111,-500.0,0.00019178,18]
[420179267,1775752239121,-223.94667349,0.00019178,18]
[420179353,1775752241240,-23.0971292,0.00019178,18]
[420179354,1775752241249,-1166.74092485,0.00019178,18]
[420179392,1775752246436,-1611.83907515,0.00019178,18]
[420179393,1775752246447,-500.0,0.00019178,18]
[420179394,1775752246456,-1417.99,0.00019178,18]
[420179395,1775752246466,-747.15102824,0.00019178,18]
[420179396,1775752246511,-351.92062858,0.00019178,18]
[420179397,1775752246524,-31.90834318,0.00019178,18]
[420179398,1775752246533,-520.48,0.00019178,18]
[420179399,1775752246543,-1141.74,0.00019178,18]
[420179400,1775752246552,-500.0,0.00019178,18]
[420179401,1775752246561,-714.89,0.00019178,18]
[420179402,1775752246570,-255.30714509,0.00019178,18]
[420179403,1775752246580,-500.0,0.00019178,18]
[420179404,1775752246590,-681.23,0.00019178,18]
[420179405,1775752246599,-1778.58,0.00019178,18]
[420179406,1775752246609,-152.43889801,0.00019178,18]
[420179407,1775752246618,-508.74056091,0.00019178,18]
[420179408,1775752246627,-1046.16042559,0.00019178,18]
[420179409,1775752281676,-8.77475316,0.00013699,2]
[420179410,1775752281691,-991.22524684,0.00013699,2]
[420179424,1775753402948,208.0,9e-05,2]
[420179433,1775753433433,-208.0,9.9e-05,2]
[420179434,1775753433443,-580.9660397,0.00013699,2]
[420179435,1775753433455,-327.0,0.00013699,2]
[420179436,1775753433468,-92.0339603,0.00013699,2]
[420179437,1775753433478,-236.56702658,0.00014148,2]
[420179438,1775753433488,-279.14909136,0.00016148,2]
[420179439,1775753433499,-300.0,0.00016438,2]
[420179440,1775753433509,-462.22370291,0.0001696,2]
[420179461,1775753438590,-155.84452675,0.0001696,2]
[420179462,1775753438600,-300.0,0.00017281,2]
[420179463,1775753438610,-975.0,0.00017281,2]
[420179464,1775753438620,-200.55625396,0.00017282,2]
[420179465,1775753438630,-6958.7617532,0.00017282,2]
[420179466,1775753438640,-200.0,0.00017389,2]
[420179467,1775753438650,-200.0,0.00017389,2]
[420179468,1775753438660,-200.0,0.00017389,2]
[420179469,1775753438670,-200.0,0.00017389,2]
[420179470,1775753438680,-200.0,0.00017389,2]
[420179471,1775753438690,-200.0,0.00017389,2]
[420179472,1775753438700,-200.0,0.00017389,2]
[420179473,1775753438710,-200.0,0.00017389,2]
[420179474,1775753438720,-200.0,0.00017389,7]
[420179475,1775753438730,-200.0,0.00017389,7]
[420179476,1775753438740,-200.0,0.00017389,7]
[420179477,1775753438750,-200.0,0.00017389,7]
[420179478,1775753438760,-200.0,0.00017389,7]
[420179479,1775753438770,-200.0,0.00017389,7]
[420179481,1775753438780,-200.0,0.00017389,7]
[420179483,1775753438790,-200.0,0.00017389,7]
[420179485,1775753438800,-200.0,0.00017389,7]
[420179486,1775753438810,-200.0,0.00017389,7]
[420179488,1775753438820,-200.0,0.00017389,7]
[420179491,1775753438830,-200.0,0.00017389,7]
[420179492,1775753438840,-200.0,0.00017389,7]
[420179493,1775753438850,-200.0,0.00017389,7]
[420179494,1775753438860,-200.0,0.00017389,30]
[420179495,1775753438870,-200.0,0.00017389,30]
[420179496,1775753438880,-200.0,0.00017389,30]
[420179497,1775753438890,-200.0,0.00017389,30]
[420179498,1775753438900,-200.0,0.00017389,30]
[420179499,1775753438911,-4535.38737201,0.00017389,2]
[420179500,1775753438921,-330.0,0.00017964,2]
[420179501,1775753438930,-321.73115615,0.00018148,2]
[420179502,1775753438940,-208.54116,0.00018176,2]
[420179503,1775753438950,-300.0,0.00018178,2]
[420179504,1775753438960,-3569.7632533,0.00018209,2]
[420179505,1775753438970,-392.0,0.00018869,2]
[420179506,1775753438982,-3854.38751195,0.00018977,2]
[420179507,1775753438992,-1932.53,0.00019,2]
[420179508,1775753439004,-500.0,0.00019013,2]
[420179509,1775753439014,-250.0,0.00019014,7]
[420179510,1775753439024,-197.4649555,0.0001903,2]
[420179511,1775753439033,-2810.4203068,0.0001903,2]
[420179512,1775753439043,-245.2458874,0.00019077,2]
[420179513,1775753439052,-245.24588736,0.00019077,2]
[420179514,1775753439061,-245.24588736,0.00019078,2]
[420179515,1775753439071,-245.24588736,0.00019078,2]
[420179516,1775753439081,-245.24588736,0.00019078,2]
[420179517,1775753439091,-500.0,0.00019173,2]
[420179518,1775753439101,-502.83598002,0.00019173,2]
[420179519,1775753439113,-502.44216819,0.00019173,2]
[420179520,1775753439122,-483.37708546,0.00019173,2]
[420179521,1775753439131,-500.0,0.00019173,2]
[420179522,1775753439140,-500.0,0.00019173,2]
[420179523,1775753439150,-501.14430517,0.00019173,2]
[420179524,1775753439160,-500.0,0.00019173,2]
[420179525,1775753439170,-500.0,0.00019173,2]
[420179526,1775753439180,-500.0,0.00019173,2]
[420179527,1775753439190,-500.0,0.00019173,2]
[420179528,1775753439200,-500.0,0.00019173,2]
[420179529,1775753439211,-506.00898444,0.00019173,2]
[420179530,1775753439222,-571.15576324,0.00019173,2]
[420179531,1775753439232,-500.0,0.00019173,2]
[420179532,1775753439241,-500.0,0.00019173,2]
[420179533,1775753439251,-501.7232661,0.00019173,2]
[420179534,1775753439261,-215.03828323,0.00019173,2]
[420179535,1775753439271,-500.0,0.00019173,2]
[420179536,1775753439280,-500.0,0.00019173,2]
[420179537,1775753439290,-500.0,0.00019175,2]
[420179538,1775753439300,-500.0,0.00019175,2]
[420179539,1775753439309,-500.0,0.00019176,2]
[420179540,1775753439319,-500.0,0.00019176,2]
[420179541,1775753439328,-500.0,0.00019176,2]
[420179542,1775753439338,-500.0,0.00019176,2]
[420179543,1775753439347,-500.0,0.00019176,2]
[420179544,1775753439357,-627.11552771,0.00019176,2]
[420179545,1775753439367,-500.0,0.00019176,2]
[420179546,1775753439376,-500.0,0.00019176,2]
[420179547,1775753439386,-500.0,0.00019176,2]
[420179548,1775753439395,-500.0,0.00019176,2]
[420179549,1775753439405,-500.0,0.00019176,2]
[420179550,1775753439415,-500.0,0.00019176,2]
[420179551,1775753439425,-500.0,0.00019176,2]
[420179552,1775753439434,-500.0,0.00019176,2]
[420179553,1775753439444,-500.0,0.00019176,2]
[420179554,1775753439453,-500.0,0.00019176,2]
[420179555,1775753439463,-500.0,0.00019176,2]
[420179556,1775753439473,-300.0,0.00019176,2]
[420179557,1775753439483,-161.53,0.00019176,2]
[420179558,1775753439492,-467.01709436,0.00019176,2]
[420179559,1775753439502,-500.0,0.00019176,2]
[420179560,1775753439511,-500.0,0.00019176,2]
[420179561,1775753439521,-203.73392887,0.00019176,2]
[420179562,1775753439531,-500.0,0.00019176,2]
[420179563,1775753439541,-500.0,0.00019176,2]
[420179564,1775753439551,-413.25429508,0.00019176,2]
[420179565,1775753439560,-500.0,0.00019176,2]
[420179566,1775753439570,-500.0,0.00019176,2]
[420179567,1775753439580,-500.0,0.00019176,2]
[420179568,1775753439591,-500.0,0.00019176,2]
[420179569,1775753439601,-500.0,0.00019176,2]
[420179570,1775753439610,-1148.6091592,0.00019177,18]
[420179571,1775753439620,-1148.6091592,0.00019177,18]
[420179572,1775753439630,-1148.6091592,0.00019177,18]
[420179573,1775753439640,-1148.6091592,0.00019177,18]
[420179574,1775753439650,-500.0,0.00019177,2]
[420179575,1775753439659,-500.0,0.00019177,2]
[420179576,1775753439670,-500.0,0.00019177,2]
[420179577,1775753439679,-500.0,0.00019177,2]
[420179578,1775753439689,-500.0,0.00019177,2]
[420179579,1775753439699,-500.0,0.00019177,2]
[420179580,1775753439709,-500.0,0.00019177,2]
[420179581,1775753439719,-500.0,0.00019177,2]
[420179582,1775753439730,-500.0,0.00019177,2]
[420179583,1775753439739,-500.0,0.00019177,2]
[420179584,1775753439749,-500.0,0.00019177,2]
[420179585,1775753439758,-500.0,0.00019177,2]
[420179586,1775753439768,-500.0,0.00019177,2]
[420179587,1775753439778,-500.0,0.00019177,2]
[420179588,1775753439789,-500.0,0.00019177,2]
[420179589,1775753439799,-500.0,0.00019177,2]
[420179590,1775753439809,-500.0,0.00019177,2]
[420179591,1775753439818,-500.0,0.00019177,2]
[420179592,1775753439827,-227.4499027,0.00019177,2]
[420179593,1775753439837,-500.0,0.00019177,2]
[420179594,1775753439846,-500.0,0.00019177,2]
[420179595,1775753439855,-545.09838459,0.00019177,2]
[420179596,1775753439865,-232.29165635,0.00019177,2]
[420179597,1775753439875,-500.0,0.00019177,2]
[420179598,1775753439885,-500.0,0.00019177,2]
[420179599,1775753439947,-500.0,0.00019177,2]
[420179600,1775753439956,-500.0,0.00019177,2]
[420179601,1775753439966,-418.07613317,0.00019177,2]
[420179602,1775753439976,-500.0,0.00019177,2]
[420179603,1775753439986,-500.0,0.00019177,2]
[420179604,1775753439996,-500.0,0.00019177,2]
[420179605,1775753440005,-500.0,0.00019177,2]
[420179607,1775753440014,-500.0,0.00019177,2]
[420179608,1775753440023,-500.0,0.00019177,2]
[420179609,1775753440032,-500.0,0.00019177,2]
[420179610,1775753440042,-500.0,0.00019177,2]
[420179611,1775753440051,-500.0,0.00019177,2]
[420179612,1775753440060,-500.0,0.00019177,2]
[420179613,1775753440070,-650.0,0.00019177,2]
[420179614,1775753440079,-929.27730534,0.00019177,2]
[420179615,1775753440088,-929.27730534,0.00019177,2]
[420179616,1775753440097,-929.27730534,0.00019177,2]
[420179617,1775753440106,-929.27730534,0.00019177,2]
[420179618,1775753440115,-929.27730534,0.00019177,2]
[420179619,1775753440124,-929.27730534,0.00019177,2]
[420179620,1775753440132,-929.27730534,0.00019177,2]
[420179621,1775753440142,-929.27730534,0.00019177,2]
[420179622,1775753440151,-929.27730534,0.00019177,2]
[420179623,1775753440160,-929.27730534,0.00019177,2]
[420179624,1775753440170,-929.27730534,0.00019177,2]
[420179625,1775753440179,-929.27730534,0.00019177,2]
[420179626,1775753440188,-929.27730534,0.00019177,2]
[420179627,1775753440198,-929.27730534,0.00019177,2]
[420179628,1775753440207,-929.27730534,0.00019177,2]
[420179629,1775753440216,-929.27730534,0.00019177,2]
[420179630,1775753440226,-929.27730534,0.00019177,2]
[420179631,1775753440235,-1003.61948976,0.00019177,2]
[420179632,1775753440245,-1003.61948976,0.00019177,2]
[420179633,1775753440254,-1003.61948976,0.00019177,2]
[420179634,1775753440263,-1003.61948976,0.00019177,2]
[420179635,1775753440273,-1003.61948976,0.00019177,2]
[420179636,1775753440282,-1003.61948976,0.00019177,2]
[420179637,1775753440292,-1003.61948976,0.00019177,2]
[420179638,1775753440303,-1003.61948976,0.00019177,2]
[420179639,1775753440313,-1003.61948976,0.00019177,2]
[420179640,1775753440323,-910.9776907,0.00019177,2]
[420179641,1775753440334,-910.9776907,0.00019177,2]
[420179642,1775753440343,-910.9776907,0.00019177,2]
[420179643,1775753440354,-160.0,0.00019178,18]
[420179644,1775753440365,-160.0,0.00019178,18]
[420179645,1775753440376,-500.0,0.00019178,18]
[420179646,1775753440386,-500.0,0.00019178,18]
[420179647,1775753440398,-500.0,0.00019178,18]
[420179648,1775753440408,-500.0,0.00019178,18]
[420179649,1775753440420,-500.0,0.00019178,18]
[420179650,1775753440430,-500.0,0.00019178,18]
[420179651,1775753440441,-500.0,0.00019178,18]
[420179652,1775753440451,-500.0,0.00019178,18]
[420179653,1775753440462,-500.0,0.00019178,18]
[420179654,1775753440473,-586.21747482,0.00019178,18]
[420179655,1775753440483,-463.95699647,0.00019178,18]
[420179657,1775753440493,-500.0,0.00019178,18]
[420179658,1775753440503,-523.83245627,0.00019178,7]
[420179659,1775753440514,-500.0,0.00019178,18]
[420179660,1775753440525,-500.0,0.00019178,18]
[420179661,1775753440535,-500.0,0.00019178,18]
[420179662,1775753440547,-742.05,0.00019178,18]
[420179663,1775753440557,-168.31043044,0.00019178,18]
[420179664,1775753440566,-500.24841035,0.00019178,18]
[420179665,1775753440577,-500.0,0.00019178,18]
[420179666,1775753440587,-500.0,0.00019178,18]
[420179667,1775753440597,-500.0,0.00019178,18]
[420179668,1775753440607,-500.0,0.00019178,18]
[420179669,1775753440617,-500.0,0.00019178,18]
[420179670,1775753440627,-151.0,0.00019178,2]
[420179671,1775753440637,-151.0,0.00019178,2]
[420179672,1775753440647,-151.0,0.00019178,2]
[420179673,1775753440657,-500.0,0.00019178,18]
[420179674,1775753440667,-151.0,0.00019178,2]
[420179675,1775753440676,-151.0,0.00019178,2]
[420179676,1775753440685,-151.0,0.00019178,2]
[420179677,1775753440695,-288.360296,0.00019178,2]
[420179678,1775753440704,-698.11,0.00019178,18]
[420179679,1775753440713,-3614.28,0.00019178,18]
[420179680,1775753440722,-526.20240685,0.00019178,18]
[420179681,1775753440732,-268.18527115,0.00019178,18]
[420179682,1775753440741,-500.0,0.00019178,18]
[420179683,1775753440750,-500.0,0.00019178,14]
[420179684,1775753440759,-1138.72,0.00019178,18]
[420179685,1775753440768,-500.0,0.00019178,18]
[420179686,1775753440779,-500.0,0.00019178,18]
[420179687,1775753440790,-2662.81,0.00019178,18]
[420179688,1775753440800,-500.0,0.00019178,18]
[420179689,1775753440810,-500.0,0.00019178,18]
[420179690,1775753440819,-550.77075314,0.00019178,18]
[420179691,1775753440829,-500.0,0.00019178,18]
[420179692,1775753440839,-500.0,0.00019178,18]
[420179693,1775753440849,-500.0,0.00019178,18]
[420179694,1775753440859,-599.56,0.00019178,18]
[420179695,1775753440868,-516.16371127,0.00019178,18]
[420179696,1775753440878,-460.4,0.00019178,18]
[420179697,1775753440887,-500.0,0.00019178,18]
[420179698,1775753440896,-1083.04,0.00019178,18]
[420179699,1775753440906,-500.0,0.00019178,18]
[420179700,1775753440915,-500.0,0.00019178,18]
[420179701,1775753440925,-360.10482082,0.00019178,18]
[420179702,1775753440934,-500.0,0.00019178,18]
[420179703,1775753440943,-500.0,0.00019178,7]
[420179704,1775753440953,-1174.14,0.00019178,18]
[420179705,1775753440962,-500.0,0.00019178,18]
[420179706,1775753440971,-2664.99,0.00019178,18]
[420179707,1775753440981,-533.56339726,0.00019178,18]
[420179708,1775753440991,-500.0,0.00019178,18]
[420179709,1775753441000,-501.72018518,0.00019178,18]
[420179710,1775753441010,-537.53420074,0.00019178,18]
[420179711,1775753441018,-2012.24,0.00019178,18]
[420179712,1775753441027,-500.0,0.00019178,18]
[420179713,1775753441037,-500.0,0.00019178,18]
[420179714,1775753441046,-500.0,0.00019178,18]
[420179715,1775753441057,-151.0,0.00019178,2]
[420179716,1775753441066,-151.0,0.00019178,2]
[420179717,1775753441075,-573.46027992,0.00019178,18]
[420179718,1775753441085,-151.0,0.00019178,2]
[420179719,1775753441094,-151.0,0.00019178,2]
[420179720,1775753441103,-151.0,0.00019178,2]
[420179721,1775753441113,-568.08,0.00019178,18]
[420179722,1775753441122,-169.066584,0.00019178,2]
[420179723,1775753441132,-500.0,0.00019178,18]
[420179724,1775753441141,-3293.3,0.00019178,18]